Workbook

Sheet Intro
B4: Sample Budget for Small-Scale Commercial Tomato Operations in East Tennessee
B5: Version 1.1
B7: Margarita Velandia
B8: Professor
B9: Office: (865) 974-7409 Email: mvelandia@utk.edu
B11: Becky Bowling
B12: Extension Specialist
B13: Office: (865) 974-7016 Email: bowling10@utk.edu
B22: Programs in agriculture and natural resources, 4-H youth development, family and consumer sciences, and resource development.
B23: University of Tennessee Institute of Agriculture, U.S. Department of Agriculture and country governments cooperating.
B24: UT Extension provide equal opportunities in programs and employment.

Sheet Sample Budget
B1: 2022 SAMPLE Budget for Small-Scale Commercial Tomato Operations
C3: Tomato Variety: | D3: Round red tomatoes (empire, celebrity)
C4: Production practice: | D4: Open field production + irrigated
C5: No. of farmers markets attended: | D5: 1
C6: No. of products sold at farmers markets | D6: 3
C7: Operation Size: | D7: 100 ft row
C8: Space between plants: | D8: 24 inches
C9: Space between rows: | D9: 6 feet
C10: Location | D10: East Tennessee
D12: UNIT | E12: QUANTITY | F12: $/UNIT | G12: TOTAL
C13: GROSS RETURNS
C14: Tomatoes | D14: lbs | E14: =E$17*'Input suppliers_and_other info'!C$159 -> 450 | F14: 2 | G14: =+F14*E14 -> 900
C16: VARIABLE COST
C17: Tomato plants-hybrid1 | D17: plant | E17: 50 | F17: =+AVERAGE('Input suppliers_and_other info'!$E$5:$E$6) -> 0.262 | G17: =+F17*E17 -> 13.1
C18: Fertilizer2
C19: Plant starter (20-20-20) | D19: lb | E19: 5.5 | F19: =+AVERAGE('Input suppliers_and_other info'!E$11:E$13) -> 1.5612 | G19: =+F19*E19 -> 8.5866
C20: Calcium nitrate | D20: lb | E20: 3.9 | F20: =+AVERAGE('Input suppliers_and_other info'!E$25:E$30) -> 0.4990333333 | G20: =+F20*E20 -> 1.94623
C21: Potassium nitrate | D21: lb | E21: 8.1 | F21: =+AVERAGE('Input suppliers_and_other info'!E$17, 'Input suppliers_and_other info'!E$19) -> 0.7 | G21: =+F21*E21 -> 5.67
C22: Soil test3 | D22: test | E22: 1 | F22: =+'Input suppliers_and_other info'!E$34 -> 15 | G22: =+F22*E22 -> 15
C23: Fungicides4
C24: Chlorothalonil 6SC | D24: ml | E24: 22.8 | F24: =+AVERAGE('Input suppliers_and_other info'!E$52:E$54) -> 0.01324224815 | G24: =+F24*E24 -> 0.3019232579
C25: Inspire Super | D25: ml | E25: 24.42 | F25: =+AVERAGE('Input suppliers_and_other info'!E$39:E$43) -> 0.07735799207 | G25: =+F25*E25 -> 1.889082166
C26: Fontelis | D26: ml | E26: 24.42 | F26: =+AVERAGE('Input suppliers_and_other info'!E$46:E$48) -> 0.06936151475 | G26: =+F26*E26 -> 1.69380819
C27: Mancozeb | D27: lb | E27: 0.06 | F27: =+AVERAGE('Input suppliers_and_other info'!E$58:E$60) -> 18.51070764 | G27: =+F27*E27 -> 1.110642459
C28: Copper | D28: lb | E28: 0.1 | F28: =+AVERAGE('Input suppliers_and_other info'!E$63:E$65) -> 2.845833333 | G28: 0.2845833333
C29: Herbicide5
C30: Metribuzin | D30: oz | E30: 0.11 | F30: =+AVERAGE('Input suppliers_and_other info'!E$104:E$107) -> 0.924375 | G30: =+F30*E30 -> 0.10168125
C31: Poast | D31: pt | E31: 0.03 | F31: =+AVERAGE('Input suppliers_and_other info'!E$112:E$116) -> 14.6046 | G31: =+E31*F31 -> 0.438138
C32: Insecticide5
C33: Dipel DF | D33: oz | E33: 0.42 | F33: =+AVERAGE('Input suppliers_and_other info'!E$71:E$77) -> 1.100089286 | G33: =+F33*E33 -> 0.4620375
C34: Radiant SC | D34: ml | E34: 3.24 | F34: =+AVERAGE('Input suppliers_and_other info'!E$89:E$92) -> 0.2900688604 | G34: =+E34*F34 -> 0.9398231078
C35: Admire Pro | D35: ml | E35: 3.54 | F35: =+AVERAGE('Input suppliers_and_other info'!E$96:E$99) -> 0.07198990307 | G35: =+F35*E35 -> 0.2548442569
C36: Plastic mulch6 | D36: sq ft | E36: 400 | F36: =+AVERAGE('Input suppliers_and_other info'!E$120:E$123) -> 0.01116583333 | G36: =+F36*E36 -> 4.466333333
C37: Stakes7 | D37: stake | E37: 25 | F37: =+AVERAGE('Input suppliers_and_other info'!E$127:E$131) -> 1.046525714 | G37: =+F37*E37 -> 26.16314286
C38: Twine/string7 | D38: box | E38: 1 | F38: =+AVERAGE('Input suppliers_and_other info'!E$136:E$138) -> 8.026666667 | G38: =+F38*E38 -> 8.026666667
C39: Irrigation supplies8
C40: Drip tape | D40: linear ft | E40: 100 | F40: =+AVERAGE('Input suppliers_and_other info'!E$142:E$144) -> 0.25 | G40: =+F40*E40 -> 25
C41: Hired labor9
C42: Transplanting, bed preparation (lay plastic and drip) | D42: hours | E42: 8 | F42: 13.89 | G42: =+F42*E42 -> 111.12
C43: Pruning and Training | D43: hour | E43: 10 | F43: 13.89 | G43: =+F43*E43 -> 138.9
C44: Harvesting | D44: hour | E44: 9 | F44: 13.89 | G44: =+F44*E44 -> 125.01
C45: Other10
C46: Machinery (maintenance and repairs) | D46: 100-ft row
C47: Cash rent | D47: 100-ft row | E47: 1 | F47: 2.6 | G47: =+E47*F47 -> 2.6
C49: TOTAL VARIABLE COST | G49: =SUM(G17:G47) -> 493.0655364
C50: INTEREST ON VARIABLE COST11 | D50: % | E50: =+$G$49*0.5 -> 246.5327682 | F50: 0.0435 | G50: =+E50*F50 -> 10.72417542
C52: MARKETING COSTS
C53: Annual fee ((1/No. of products sold) of total annual fee)12 | G53: =+AVERAGE('Input suppliers_and_other info'!C$169:C$176)*1/$D$6 -> 8.333333333
C54: Booth fee ((1/No. of products sold) of total booth fee cost)12 | D54: day | E54: 20 | F54: =+AVERAGE('Input suppliers_and_other info'!D$171:D$174,'Input suppliers_and_other info'!D$169) -> 20.6 | G54: =+F54*E54*$D$5/$D$6 -> 137.3333333
C55: Hired labor ((1/No. of products sold) of total hired labor)13 | D55: hour | E55: 80 | F55: 13.89 | G55: =+F55*E55*$D$5/$D$6 -> 370.4
C56: Crates14 | D56: crate | E56: 15 | F56: =+AVERAGE('Input suppliers_and_other info'!F$149:F$151) -> 14.96666667 | G56: =+E56*F56/$D$6 -> 74.83333333
C57: Gas/Fuel (driving to market, (1/No. of products sold) of total cost)15 | D57: 100-ft row | E57: 1 | G57: =80*3.6*1/$D$6 -> 96
C58: Other marketing costs16
C59: TOTAL MARKETING COSTS | G59: =SUM(G53:G57) -> 686.9
C61: TOTAL VARIABLE AND MARKETING COST | G61: =+G49+G50+G59 -> 1190.689712
C63: RETURN ABOVE VARIABLE AND MARKETING COST | G63: =+G14-G61 -> -290.6897118
C65: Price information of produce sold at various farmers markets across Tennessee can be found at:
C66: https://www.uky.edu/ccd/pricereports/TNFM
B501: 2022 SAMPLE Budget for Small-Scale Commercial Tomato Operations
C503: Tomato Variety: | D503: Round red tomatoes (empire, celebrity)
C504: Production practice: | D504: Open field production + irrigated
C505: No. of farmers markets attended: | D505: 1
C506: No. of products sold at farmers markets | D506: 3
C507: Operation Size: | D507: 100 ft row
C508: Space between plants: | D508: 24 inches
C509: Space between rows: | D509: 6 feet
C510: Location | D510: East Tennessee
D512: UNIT | E512: QUANTITY | F512: $/UNIT | G512: TOTAL
C513: GROSS RETURNS
C514: Tomatoes* | D514: lbs | E514: =E$17*'Input suppliers_and_other info'!C$159 -> 450 | F514: 2 | G514: =+F514*E514 -> 900
C516: VARIABLE COST
C517: Tomato plants-hybrid1 | D517: plant | E517: 50 | F517: =+AVERAGE('Input suppliers_and_other info'!$E$5:$E$6) -> 0.262
C518: Fertilizer2
C519: Plant starter (20-20-20) | D519: lb | E519: 5.5 | F519: =+AVERAGE('Input suppliers_and_other info'!E$11:E$13) -> 1.5612
C520: Calcium nitrate | D520: lb | E520: 3.9 | F520: =+AVERAGE('Input suppliers_and_other info'!E$25:E$30) -> 0.4990333333
C521: Potassium nitrate | D521: lb | E521: 8.1 | F521: =+AVERAGE('Input suppliers_and_other info'!E$17, 'Input suppliers_and_other info'!E$19) -> 0.7
C522: Soil test3 | D522: test | E522: 1 | F522: =+'Input suppliers_and_other info'!E$34 -> 15
C523: Fungicides4
C524: Chlorothalonil 6SC | D524: ml | E524: 22.8 | F524: =+AVERAGE('Input suppliers_and_other info'!E$52:E$54) -> 0.01324224815
C525: Inspire Super | D525: ml | E525: 24.42 | F525: =+AVERAGE('Input suppliers_and_other info'!E$39:E$43) -> 0.07735799207
C526: Fontelis | D526: ml | E526: 24.42 | F526: =+AVERAGE('Input suppliers_and_other info'!E$46:E$48) -> 0.06936151475
C527: Mancozeb | D527: lb | E527: 0.06 | F527: =+AVERAGE('Input suppliers_and_other info'!E$58:E$60) -> 18.51070764
C528: Copper | D528: lb | E528: 0.1 | F528: =+AVERAGE('Input suppliers_and_other info'!E$63:E$65) -> 2.845833333
C529: Herbicide5
C530: Metribuzin | D530: oz | E530: 0.11 | F530: =+AVERAGE('Input suppliers_and_other info'!E$104:E$107) -> 0.924375 | G530: 0.19231875
C531: Poast | D531: pt | E531: 0.03 | F531: =+AVERAGE('Input suppliers_and_other info'!E$112:E$116) -> 14.6046 | G531: 0.374925
C532: Insecticide5
C533: Dipel DF | D533: oz | E533: 0.42 | F533: =+AVERAGE('Input suppliers_and_other info'!E$71:E$77) -> 1.100089286 | G533: 0.8582
C534: Radiant SC | D534: ml | E534: 3.24 | F534: =+AVERAGE('Input suppliers_and_other info'!E$89:E$92) -> 0.2900688604 | G534: 1.198372061
C535: Admire Pro | D535: ml | E535: 3.54 | F535: =+AVERAGE('Input suppliers_and_other info'!E$96:E$99) -> 0.07198990307 | G535: 0.0449009247
C536: Plastic mulch6 | D536: sq ft | E536: 400 | F536: =+AVERAGE('Input suppliers_and_other info'!E$120:E$123) -> 0.01116583333 | G536: 9.01165
C537: Stakes7 | D537: stake | E537: 25 | F537: =+AVERAGE('Input suppliers_and_other info'!E$127:E$131) -> 1.046525714 | G537: 33.6
C538: Twine/string7 | D538: box | E538: 1 | F538: =+AVERAGE('Input suppliers_and_other info'!E$136:E$138) -> 8.026666667 | G538: 7.43
C539: Irrigation supplies8
C540: Drip tape | D540: linear ft | E540: 100 | F540: =+AVERAGE('Input suppliers_and_other info'!E$142:E$144) -> 0.25 | G540: 13.75666667
C541: Hired labor9
C542: Transplanting, bed preparation (lay plastic and drip) | D542: hours | E542: 8 | F542: 13.89 | G542: 80
C543: Pruning and Training | D543: hour | E543: 10 | F543: 13.89 | G543: 100
C544: Harvesting | D544: hour | E544: 9 | F544: 13.89 | G544: 90
C545: Other10
C546: Machinery (maintenance and repairs) | D546: 1000 sq ft | G546: 12
C547: Cash rent | D547: 1000 sq ft | E547: 1 | F547: 2.6 | G547: 6
C549: TOTAL VARIABLE COST | G549: 469.11912
C550: INTEREST ON VARIABLE COST (6%)11 | D550: % | E550: 469.11912 | F550: 0.0435 | G550: 28.1471472
C552: MARKETING COSTS
C553: Annual fee12 | G553: =+AVERAGE('Input suppliers_and_other info'!C$169:C$176)*1/$D$6 -> 8.333333333
C554: Booth fee12 | D554: day | E554: 20 | F554: =+AVERAGE('Input suppliers_and_other info'!D$171:D$174,'Input suppliers_and_other info'!D$169) -> 20.6
C555: Hired labor13 | D555: hour | E555: 80 | F555: 13.89
C556: Crates14 | D556: crate | E556: 15 | F556: =+AVERAGE('Input suppliers_and_other info'!F$149:F$151) -> 14.96666667
C557: Gas/Fuel (driving to market)15 | D557: 1000 sq ft | E557: 1 | G557: =80*3.6*1/$D$6 -> 96
C558: Other marketing costs16
C559: TOTAL MARKETING COSTS | G559: 675.67
C561: TOTAL VARIABLE AND MARKETING COST | G561: 1172.936267
C563: RETURN ABOVE VARIABLE AND MARKETING COST | G563: 227.0637328

Sheet Input suppliers_and_other info (hidden)
D1: INPUT SUPPLIERS INFORMATION
B3: TOMATO PLANTS
B4: Suppliers | C4: Unit (No. plants) | D4: Price | E4: Price per plant | F4: Minmum order | G4: Phone | H4: Address | I4: Website
B5: Evans Plant Co. | C5: 300 | D5: 90 | E5: =+D5/C5 -> 0.3 | F5: 300 | I5: www.evansvegetableplants.com
B6: Arrons creek | C6: 280 | D6: =0.224*C6 -> 62.72 | E6: =+D6/C6 -> 0.224 | F6: 280 | I6: http://www.acfplugs.com/home.htm
B8: FERTILIZERS
B9: Plant Starter (20-20-20)
B10: Suppliers | C10: Unit (lb) | D10: Price | E10: Price per lb | F10: Minmum order (lb) | G10: Phone | H10: Address | I10: Website
B11: Ag Central Farmer Coop Maryville | C11: 25 | D11: 46.59 | E11: =+D11/C11 -> 1.8636 | F11: 25
B12: Jefferson County Co-op 20-20-20 | C12: 25 | D12: 36.5 | E12: =D12/C12 -> 1.46 | F12: 25
B13: Grainger County Co-op 20-20-20 | C13: 25 | D13: 34 | E13: =D13/C13 -> 1.36 | F13: 25
B15: Potassium Nitrate
B16: Suppliers | C16: Unit (lb) | D16: Price | E16: Price per lb | F16: Minmum order (lb) | G16: Phone | H16: Address | I16: Website
B17: Jefferson County Co-op | C17: 50 | D17: 37.5 | E17: =D17/C17 -> 0.75 | F17: 50
B18: Grainger County Co-op | C18: 50 | D18: 53 | E18: =D18/C18 -> 1.06 | F18: 25
B19: Ag Central Farmer Coop Maryville | C19: 50 | D19: 32.5 | E19: =+D19/C19 -> 0.65 | F19: 50
B23: Calcium Nitrate
B24: Suppliers | C24: Unit (lb) | D24: Price | E24: Price per lb | F24: Minmum order (lb) | G24: Phone | H24: Address | I24: Website
B25: Ag Central Farmer Coop Maryville | C25: 50 | D25: 21.25 | E25: =+D25/C25 -> 0.425 | F25: 50
B26: Jefferson County Co-op | C26: 50 | D26: 25 | E26: =+D26/C26 -> 0.5 | F26: 25
B27: Grainger County Co-op | C27: 50 | D27: 26 | E27: 0.52 | F27: 50
B28: Irrigation Mart | C28: 50 | D28: 23.96 | E28: 0.4792 | F28: 50
B29: Nolts Produce Supplies | C29: 50 | D29: 24.5 | E29: 0.49 | F29: 50
B30: Ag Care | C30: 50 | D30: 29 | E30: 0.58
B32: SOIL TEST
B33: Suppliers | C33: Unit (basic test) | D33: Price | E33: Price per test | F33: Minimum order | G33: Phone | H33: Address | I33: Website
B34: Soil, Plant and Pest Center | C34: 1 | D34: 15 | E34: =+D34/C34 -> 15 | F34: 1 test | G34: (615) 832-5850 | H34: 5201 Marchant Drive Nashville, TN 37211 | I34: https://ag.tennessee.edu/spp/Pages/soiltesting.aspx
B36: FUNGICIDES
B37: Inspire Super
B38: Suppliers | C38: Unit (gal) | D38: Price | E38: Price per ml | F38: Phone | G38: Address | H38: Website
B39: Kestone Pest Soultion | C39: gal | D39: 309.95 | E39: =+D39/C$186 -> 0.08188903567
B40: Ag Care products | C40: 1 gal | D40: 287 | E40: =+D40/C$186 -> 0.07582562748
B41: Martin's produce supplies | C41: 1 gal | D41: 267.05 | E41: =+D41/C$186 -> 0.07055482166
B42: Jefferson County Co-op | C42: 1 | D42: 300 | E42: =+D42/C$186 -> 0.07926023778
B43: Grainger County Co-op | C43: 1 | D43: 300 | E43: =+D43/C$186 -> 0.07926023778
B44: Fontelis
B45: Suppliers | C45: Unit (gal) | D45: Price | E45: Price per ml
B46: Jefferson County Co-op | C46: 2.5 | D46: 675 | E46: =+D46/($C$186*2.5) -> 0.071334214
B47: Grainger County Co-op | C47: 2.5 | D47: 650 | E47: =+D47/($C$186*2.5) -> 0.06869220608
B48: Ag Care | C48: 2.5 | D48: 644 | E48: =+D48/($C$186*2.5) -> 0.06805812417
B50: Chlorothalonil 6SC | G50: =+E50*F50 -> 0
B51: Suppliers | C51: Unit (gal) | D51: Price | E51: Price per ml | F51: Phone | G51: Address | H51: Website
B52: Keystone pest solution | C52: 2.5 | D52: 144.95 | E52: =+D52/9463.53 -> 0.01531669472
B53: Ag Care | C53: 2.5 | D53: 91 | E53: =+D53/9463.53 -> 0.009615862157 | H53: https://www.agcareproducts.com/products/chlorothalonil-2-5?_pos=2&_sid=892894780&_ss=r
B54: Jefferson County Co-op | C54: 2.5 | D54: 139.99 | E54: =+D54/($C$186*2.5) -> 0.01479418758 | F54: (865) 828-5226 | G54: 8570 Rutledge Pike Rutledge, TN 37861 | H54: http://ourcoop.com/ourcoop08/locator/storeDetail.aspx?storeID=37
B56: Mancozeb
B57: Suppliers | C57: Unit (pt) | D57: Price | E57: Price per lb | F57: Phone | G57: Address | H57: Website
B58: Maryville | C58: pt | D58: 17.99 | E58: =+D58/1.04318 -> 17.24534596
B59: Keystone Pest solution | C59: pt | D59: 20.95 | E59: =+D59/1.04318 -> 20.08282367
B60: Knoxville coop | C60: pt | D60: 18.99 | E60: =+D60/1.04318 -> 18.2039533
B61: Copper
B62: Suppliers | C62: Unit (4 lbs) | D62: Price | E62: Price per lb | F62: Phone | G62: Address | H62: Website
B63: Maryville | C63: 4 | D63: 11.95 | E63: =+D63/C63 -> 2.9875
B64: Knox | C64: 5 | D64: 13.5 | E64: =+D64/C64 -> 2.7
B65: Ag care | C65: 1 | D65: 2.85 | E65: =+D65/C65 -> 2.85
B68: Insecticides
B69: Dipel DF
B70: Suppliers | C70: Unit (oz) | D70: Price | E70: Price per oz | F70: Minmum order (oz) | G70: Phone | H70: Address | I70: Website
B71: Knox | C71: 1 | D71: 19.59 | E71: =D71/16 -> 1.224375 | F71: 16
B72: Martin's Produce supplies | C72: 1 | D72: 14.33 | E72: =D72/16 -> 0.895625 | F72: 16
B73: Keystone pest solutions | C73: 1 | D73: 20.95 | E73: 1.309375 | F73: 16
B74: Ag Care | C74: 1 | D74: 15.75 | E74: 0.984375 | F74: 16
B75: Militello Farm Supply Inc | C75: 5 | D75: 84.95 | E75: =D75/(16*5) -> 1.061875 | F75: 16
B76: Jefferson County Co-op | C76: 1lb | D76: 18.6 | E76: =+D76/16 -> 1.1625
B77: Grainger County Co-op | C77: 1 | D77: 17 | E77: =+D77/16 -> 1.0625
B80: Avaunt
B81: Suppliers | C81: Unit (oz) | D81: Price | E81: Price per oz | F81: Minmum order (oz) | G81: Phone | H81: Address | I81: Website
B82: Kestone Pest Solutions LLC | C82: 18 | D82: 139.95 | E82: =+D82/C82 -> 7.775 | F82: 18 | G82: (877)835-8321 | I82: http://www.keystonepestsolutions.com/avaunt-insecticide-18-ounces-518.html
B83: Mississippi State University Estimate 2013 | C83: 1 | D83: 7.39 | E83: =+D83/C83 -> 7.39 | I83: http://www.agecon.msstate.edu/whatwedo/budgets/docs/MSUVEG13.pdf
B87: Radiant SC
B88: Suppliers | C88: Unit | D88: Price | E88: Price per ml | F88: Minmum order | G88: Phone | H88: Address | I88: Website
B89: Keyston Pest solutions | C89: qt | D89: 289.95 | E89: =+D89/946.353 -> 0.3063867288
B90: Martin's produce solution | C90: qt | D90: 258.33 | E90: =+D90/946.353 -> 0.2729742496
B91: Knoxville | C91: gal | D91: 1099 | E91: =+D91/3785.41 -> 0.2903252224
B92: Grainger County Co-op | C92: qt | D92: 275 | E92: =+D92/946.353 -> 0.290589241
B94: Admire Pro
B95: Suppliers | C95: Unit (fl oz) | D95: Price | E95: Price per ml | F95: Minmum order (gal) | G95: Phone | H95: Address | I95: Website
B96: Jefferson County Co-op | C96: 140 | D96: 250 | E96: =+D96/4140.29415625 -> 0.06038218314 | F96: 1 | G96: (877)835-8321 | I96: http://www.keystonepestsolutions.com/montana-2f-insecticide-1-gal-same-ai-as-admire-pro-nuprid-2f-246.html
B97: Grainger County Co-op | C97: 32 | D97: 50 | E97: =+D97/946.35295 -> 0.05283441025 | F97: 1 | G97: 1-800-373-5008 | I97: http://www.tampaagriculturalproducts.com/insecticides/montana-2-imidacloprid/
B98: Keystone Pest solution | C98: 140 oz | D98: 244.95 | E98: =+D98/4140.29415625 -> 0.05916246304
B99: Knoxville | C99: 16 oz | D99: 54.69 | E99: =+D99/473.176475 -> 0.1155805559
B101: Herbicides
B102: Metribuzin
B103: Suppliers | C103: Unit (lb) | D103: Price | E103: Price per oz | F103: Minmum order (gal) | G103: Phone | H103: Address | I103: Website
B104: Ag Care | C104: 5 | D104: 67 | E104: =+D104/(16*C104) -> 0.8375
B105: Keyston Pest Solution | C105: 5 | D105: 89.85 | E105: =+D105/(16*C105) -> 1.123125
B106: Jefferson County Co-op | C106: 5 | D106: 65 | E106: =+D106/(16*C106) -> 0.8125
B110: Poast
B111: Suppliers | C111: Unit (ga) | D111: Price | E111: Price per pt | F111: Minmum order (gal) | G111: Phone | H111: Address | I111: Website
B112: Knoxvville | C112: 2.5 | D112: 257.5 | E112: =+D112/($C$112*8) -> 12.875 | F112: 2.5 | I112: https://www.keystonepestsolutions.com/poast-herbicide-2-5-gallons-183.html
B113: Maryville | C113: 2.5 | D113: 311.4 | E113: =+D113/($C$112*8) -> 15.57
B114: Martin's Produce supplies | C114: 2.5 | D114: 248.61 | E114: 12.4305
B115: Keyston pest soluion | C115: 2.5 | D115: 327.95 | E115: 16.3975
B116: Grainger County Co-op | C116: 2.5 | D116: 315 | E116: 15.75
B118: BLACK PLASTIC
B119: Suppliers | C119: Unit (roll 4000 feet by 4 feet) | D119: Price | E119: Price per square foot | F119: Minimum order | G119: Phone | H119: Address | I119: Website
B120: Berry Hill Irrigation | C120: 1 | D120: 154 | E120: =+D120/16000 -> 0.009625
B121: Grainger County Co-op | C121: 1 | D121: 200 | E121: =+D121/16000 -> 0.0125
B122: Irrigation Mart | C122: 1 | D122: 181.96 | E122: 0.0113725
B125: STAKES
B126: Suppliers | C126: Unit (stakes) | D126: Price | E126: Price per stake | F126: Minimum order | G126: Phone | H126: Address | I126: Website
B127: Nolts produce supplies | C127: 1400 | D127: =1400*0.87 -> 1218 | E127: =+D127/C127 -> 0.87
B128: Ag Care | C128: 1 | D128: 1.25 | E128: =+D128/C128 -> 1.25
B129: Morgan County Seeds | C129: 1400 | D129: 940 | E129: =+D129/C129 -> 0.6714285714
B130: Irrigation Mart | C130: 1400 | D130: =56*11.28 -> 631.68 | E130: =+D130/C130 -> 0.4512
B131: Knoxville/Maryville 60" to 72 ") | C131: 1 | D131: 1.99 | E131: =+D131/C131 -> 1.99
B134: TWINE/STRING
B135: Suppliers | C135: Unit (box/tube) | D135: Price | E135: Price per box/tube | G135: Phone | H135: Address | I135: Website
B136: Knox/Marville | C136: 3 lb box (6300 ft) | D136: 8.99 | E136: =+D136 -> 8.99
B137: Ag Care | C137: 3 lb box (6300 ft) | D137: 7.59 | E137: =+D137 -> 7.59
B138: Nolts produce supplies | C138: 3 lb box (6300 ft) | D138: 7.5 | E138: 7.5
B140: DRIP LINE
B141: Suppliers | C141: Unit (roll) | D141: Price | E141: Price per foot | G141: Phone | H141: Address | I141: Website
B142: Rain flo | C142: 750 | D142: 190 | E142: =+D142/C142 -> 0.2533333333
B143: Grainger County Co-op | C143: 750 | D143: 185 | E143: =+D143/C143 -> 0.2466666667
B148: Company | C148: Type | D148: Min. Quantity | E148: Total Price | F148: Per Unit Price | G148: Web Link | H148: Phone
D149: 1 | E149: 16.02 | F149: 16.02 | G149: https://www.usplastic.com/catalog/item.aspx?itemid=120977&v1=&v7=&utm_campaign=&utm_source=google&utm_medium=PLA&gclid=EAIaIQobChMIsJfo867W-QIVh9rICh13Rg6mEAQYAyABEgLQ8fD_BwE | H149: 7273912300
D150: 10 | E150: 147.5 | F150: =+E150/D150 -> 14.75 | G150: https://www.globalindustrial.com/p/lewisbins-stack-n-nest-ventilated-agricultural-container-19-1116l-x-13-18w-x-5-58h-green?infoParam.campaignId=T9F&gclid=EAIaIQobChMI0uLn3a7W-QIVuzizAB3_yAxnEAQYBCABEgIjA_D_BwE | H150: None listed
D151: 1 | E151: 14.13 | F151: 14.13 | G151: https://www.webstaurantstore.com/orbis-npl654b-stack-n-nest-23-15-16-x-16-x-8-13-16-green-agricultural-vented-crate/4741102569.html | H151: 18004639999
D155: OTHER INFORMATION
B157: Tomato Marketable Yield per Plant
B158: Unit | C158: Quantity | D158: Source
B159: lb | C159: 9 | D159: https://vegetables.tennessee.edu/tomato-variety-trials/
B161: Tomato prices at Farmers markets
B162: Price scenario | C162: $/lb | D162: Website Farmers Markets Price Reports
B163: low | C163: 2 | D163: http://www.uky.edu/Ag/CCD/TNfarmersmarket.html
B164: average | C164: 2.5 | D164: http://www.uky.edu/Ag/CCD/TNfarmersmarket.html
B165: high | C165: 3 | D165: http://www.uky.edu/Ag/CCD/TNfarmersmarket.html
B167: Farmer Markets Fees
C168: Annual Fee | D168: Booth Fees | E168: Inspection Fee | F168: Website
B169: Market Square Farmers' Markets | C169: 40 | D169: 10 | F169: http://marketsquarefarmersmarket.org/
B170: East Tennessee Farmers Association for Retail Marketing - Farmers market | C170: 30 | D170: 5% of gross sales | E170: 35 | F170: http://www.easttnfarmmarkets.org/
B171: Dixie Lee Farmers Markets | C171: 30 | D171: 20 | F171: http://www.dixieleefarmersmarket.com/
B172: Maryville Farmers Market | C172: 20 | D172: 20 | F172: https://www.farmersmarketmaryville.com/
B173: Greenville Farmers Market | C173: 15 | D173: 8 | F173: http://www.greenevillefarmersmarket.com/vendor-agreement-submit-on-line.html
B174: Nashville Farmers Markets | C174: 25 | D174: 45 | F174: https://static1.squarespace.com/static/5ade9263620b8564e0cad4ce/t/6202b81ce25ab47a906392f8/1644345373014/2022+NFM+Vendor+Policy+Handbook.pdf
B175: Union Farmers Market | C175: 15 | D175: 5% of sales after $25 | F175: https://www.unioncofarmersmarket.com/vendors/
B179: CONVERSION TABLES
B181: ACRE | C181: SQUARE FEET
B182: 1 | C182: 43560
B183: =+C183/C182 -> 0.02295684114 | C183: 1000
B185: GALLON | C185: MILLILITER
B186: 1 | C186: 3785
B187: =+C187/C186 -> 0.0002642007926 | C187: 1
B189: LB | C189: OZ
B190: 1 | C190: 16
B193: QT | C193: MILLILITER
B194: 1 | C194: 946.35
B196: OZ | C196: MILLILITER
B197: 1 | C197: 29.57352969
